bitfinex-derivatives/quotes_BTCF0:USTF0_20210406
["timestamp","ask_amount","ask_price","bid_price","bid_amount"]
[1617689654453,5.99954039,58743.0,58742.0,0.268]
[1617689665671,5.99954039,58743.0,58742.0,0.56947973]
[1617689667571,5.84633039,58743.0,58742.0,0.69394973]
[1617689668973,3.28613039,58743.0,58742.0,0.69394973]
[1617689669171,6.82983039,58743.0,58742.0,0.69394973]
[1617689669572,6.4677919,58743.0,58742.0,0.69394973]
[1617689669973,6.82985306,58743.0,58742.0,0.56947973]
[1617689675780,6.82985306,58743.0,58742.0,0.61987973]
[1617689675981,6.82985306,58743.0,58742.0,0.56947973]
[1617689677382,6.94644306,58743.0,58742.0,0.56947973]
[1617689685397,6.94644306,58743.0,58742.0,0.268]
[1617689685797,6.94644306,58743.0,58742.0,0.56946307]
[1617689686199,6.94644306,58743.0,58742.0,0.268]
[1617689686599,6.94644306,58743.0,58742.0,0.5694681]
[1617689687001,6.94644306,58743.0,58742.0,0.268]
[1617689687400,6.94644306,58743.0,58742.0,0.56946558]
[1617689690906,5.94644306,58743.0,58742.0,0.56946558]
[1617689691105,6.94644306,58743.0,58742.0,0.56946558]
[1617689691906,7.50965693,58743.0,58742.0,0.56946558]
[1617689692911,7.50965693,58743.0,58742.0,0.268]
[1617689694711,7.50965693,58743.0,58742.0,0.56953042]
[1617689695012,7.50965693,58743.0,58742.0,0.268]
[1617689698518,8.06170233,58743.0,58742.0,0.268]
[1617689700122,7.50965693,58743.0,58742.0,0.268]
[1617689704627,8.06176406,58743.0,58742.0,0.268]
[1617689705326,7.06176406,58743.0,58742.0,0.268]
[1617689705528,8.06176406,58743.0,58742.0,0.268]
[1617689705929,7.50965693,58743.0,58742.0,0.268]
[1617689706431,8.06153135,58743.0,58742.0,0.268]
[1617689708032,7.9542748,58743.0,58742.0,0.268]
[1617689708532,8.06153135,58743.0,58742.0,0.268]
[1617689709235,8.11303135,58743.0,58742.0,0.268]
[1617689709636,8.06153135,58743.0,58742.0,0.268]
[1617689728960,7.06153135,58743.0,58742.0,0.268]
[1617689729160,8.06153135,58743.0,58742.0,0.268]
[1617689734763,9.56153135,58743.0,58742.0,0.268]
[1617689735165,14.56153135,58743.0,58742.0,0.268]
[1617689735366,14.76153135,58743.0,58742.0,0.268]
[1617689735566,14.76153135,58743.0,58742.0,0.2496]
[1617689735865,15.56631639,58743.0,58742.0,0.21519402]
[1617689736065,15.56631639,58743.0,58742.0,0.19929402]
[1617689736467,11.46754655,58743.0,58742.0,0.19929402]
[1617689736669,6.46754655,58743.0,58742.0,0.19929402]
[1617689736867,13.59490367,58743.0,58742.0,0.19929402]
[1617689737066,13.59490367,58743.0,58741.0,0.14]
[1617689737268,10.7402949,58743.0,58741.0,0.14]
[1617689737466,3.4066,58742.0,58741.0,0.14]
[1617689737677,8.88886537,58742.0,58741.0,0.14]
[1617689737878,9.08886537,58742.0,58741.0,0.14]
[1617689738086,15.8937096,58742.0,58741.0,0.14]
[1617689738569,15.8937096,58742.0,58741.0,0.0898]
[1617689738872,15.20471035,58742.0,58741.0,0.0898]
[1617689739070,15.20471035,58742.0,58741.0,0.0877]
[1617689742185,15.00471035,58742.0,58741.0,0.0877]
[1617689742973,14.19986612,58742.0,58741.0,0.0877]
[1617689745076,8.19986612,58742.0,58741.0,0.0877]
[1617689745276,8.34050612,58742.0,58741.0,0.0877]
[1617689745496,14.34050612,58742.0,58741.0,0.0877]
[1617689745880,15.14538931,58742.0,58741.0,0.0877]
[1617689746080,15.14538931,58742.0,58741.0,0.0866939]
[1617689746280,10.14538931,58742.0,58741.0,0.0866939]
[1617689748081,9.14538931,58742.0,58741.0,0.0866939]
[1617689748282,10.14538931,58742.0,58741.0,0.0866939]
[1617689748482,9.34050612,58742.0,58741.0,0.0866939]
[1617689748983,10.1453901,58742.0,58741.0,0.0866939]
[1617689750784,10.1453901,58742.0,58741.0,0.0441939]
[1617689751987,10.1453901,58742.0,58720.0,0.4955]
[1617689752587,1.08284343,58721.0,58720.0,0.4955]
[1617689752987,1.19009998,58721.0,58720.0,0.7655]
[1617689753590,1.43158272,58721.0,58720.0,0.7655]
[1617689753790,2.43158272,58721.0,58720.0,0.7655]
[1617689758698,5.86218272,58721.0,58720.0,0.7655]
[1617689773218,4.86218272,58721.0,58720.0,0.7655]
[1617689773417,5.86218272,58721.0,58720.0,0.7655]
[1617689774118,4.86218272,58721.0,58720.0,0.7655]
[1617689774519,6.35477992,58721.0,58720.0,0.7655]
[1617689776524,7.85477992,58721.0,58720.0,0.27]
[1617689776817,12.85477992,58721.0,58720.0,0.27]
[1617689777024,12.85477992,58721.0,58714.0,0.27]
[1617689777025,0.2,58720.0,58714.0,0.27]
[1617689777225,3.45003655,58715.0,58713.0,0.28]
[1617689777425,1.7,58714.0,58713.0,0.28]
[1617689777726,7.7,58714.0,58713.0,0.1406]
[1617689777937,7.7,58714.0,58713.0,0.4106]
[1617689778142,10.4276696,58714.0,58713.0,0.4106]
[1617689778538,10.99136422,58714.0,58713.0,0.2577]
[1617689778727,10.99136422,58714.0,58698.0,0.30114413]
[1617689779074,10.99136422,58714.0,58667.0,0.70266964]
[1617689779075,10.99136422,58714.0,58690.0,0.44170665]
[1617689779077,3.11747,58699.0,58690.0,0.44170665]
[1617689779302,0.10725655,58691.0,58690.0,0.00160665]
[1617689779451,1.80725655,58691.0,58675.0,0.32760323]
[1617689779629,11.02435655,58691.0,58675.0,0.32760323]
[1617689779848,11.02435655,58691.0,58675.0,0.27580323]
[1617689780033,12.98898012,58691.0,58657.0,0.491]
[1617689780229,4.8273,58669.0,58657.0,0.491]
[1617689780538,0.48895585,58662.0,58657.0,0.491]
[1617689780731,6.2,58658.0,58657.0,0.491]
[1617689780929,7.98858937,58658.0,58657.0,0.491]
[1617689781129,8.18858937,58658.0,58657.0,0.491]
[1617689781330,10.14396813,58658.0,58657.0,0.491]
[1617689781634,10.27716813,58658.0,58657.0,0.4833]
[1617689781830,10.27716813,58658.0,58657.0,0.48229261]
[1617689782032,11.76543256,58658.0,58657.0,0.48229261]
[1617689782228,11.76543256,58658.0,58617.0,0.50236309]
[1617689782555,12.62215059,58658.0,58656.0,0.513]
[1617689782729,6.2,58657.0,58656.0,0.4931]
[1617689782930,12.24278862,58657.0,58656.0,0.41661824]
[1617689783331,12.24278862,58657.0,58656.0,0.38231824]
[1617689783332,13.21500841,58657.0,58656.0,0.38231824]
[1617689783832,13.21500841,58657.0,58656.0,0.28155412]
[1617689784131,13.01500841,58657.0,58656.0,0.28155412]
[1617689784450,11.51500841,58657.0,58656.0,0.26485412]
[1617689784631,10.54278862,58657.0,58656.0,0.26485412]
[1617689784831,5.54278862,58657.0,58656.0,0.26485412]
[1617689785032,4.68687983,58657.0,58656.0,0.26485412]
[1617689785637,2.63563952,58657.0,58656.0,0.53485412]
[1617689786340,2.27289085,58657.0,58656.0,0.53485412]
[1617689786833,1.72818626,58657.0,58656.0,0.53485412]
[1617689787242,1.0,58657.0,58656.0,0.64211067]
[1617689787836,1.0,58657.0,58656.0,0.76412067]
[1617689788236,0.10725655,58658.0,58656.0,0.76412067]
[1617689788636,0.11701749,58658.0,58656.0,0.76412067]
[1617689789038,0.00492954,58657.0,58656.0,0.53485412]
[1617689789237,4.64292954,58657.0,58656.0,0.53485412]
[1617689789437,4.638,58657.0,58656.0,0.53485412]
[1617689789840,1.0,58657.0,58656.0,0.53485412]
[1617689791241,1.00975854,58657.0,58656.0,0.53485412]
[1617689791446,4.32635854,58657.0,58656.0,0.53485412]
[1617689791640,0.26771655,58658.0,58656.0,0.53485412]
[1617689791842,1.0,58657.0,58656.0,0.53485412]
[1617689792044,1.0,58657.0,58656.0,0.53384676]
[1617689794842,1.0,58657.0,58656.0,0.66801676]
[1617689795444,0.10725655,58658.0,58656.0,0.66801676]
[1617689796447,1.10725655,58658.0,58656.0,0.66801676]
[1617689796845,0.10725655,58658.0,58656.0,0.66801676]
[1617689797846,0.00975805,58657.0,58656.0,0.66801676]
[1617689798147,0.10725655,58658.0,58656.0,0.66801676]
[1617689799954,0.10725655,58658.0,58656.0,0.53384676]
[1617689800951,1.10928024,58658.0,58656.0,0.53384676]
[1617689801251,0.10928024,58658.0,58656.0,0.53384676]
[1617689801652,0.10928024,58658.0,58656.0,0.67790676]
[1617689801852,0.00202345,58657.0,58656.0,0.67790676]
[1617689802254,1.00202345,58657.0,58656.0,0.67790676]
[1617689802660,1.00202345,58657.0,58656.0,0.53384676]
[1617689802852,4.30496345,58657.0,58656.0,0.53384676]
[1617689803480,4.30294,58657.0,58656.0,0.5328394]
[1617689804763,1.0,58657.0,58656.0,0.5328394]
[1617689805156,1.34672403,58657.0,58656.0,0.5328394]
[1617689805555,1.34672403,58657.0,58656.0,0.27]
[1617689805955,1.32565238,58657.0,58642.0,0.27]
[1617689806158,0.97892835,58657.0,58642.0,0.27]
[1617689806356,1.0,58657.0,58656.0,0.39144]
[1617689806557,1.0,58657.0,58656.0,0.12144]
[1617689806962,1.0,58657.0,58656.0,0.39144]
[1617689808461,1.0,58657.0,58656.0,0.27]
[1617689808962,1.3468387,58657.0,58642.0,0.27]
[1617689809162,1.3468387,58657.0,58656.0,0.27]
[1617689809564,1.3468387,58657.0,58641.0,0.4743]
[1617689809565,1.0,58657.0,58642.0,0.27]
[1617689809862,0.28877845,58657.0,58656.0,0.27]
[1617689810062,0.28877845,58657.0,58642.0,0.27]
[1617689810264,0.63539488,58657.0,58642.0,0.27]
[1617689810466,3.3611,58644.0,58641.0,0.4743]
[1617689810664,1.0,58643.0,58642.0,0.27]
[1617689810870,1.0,58643.0,58642.0,0.42941]
[1617689811066,0.00202149,58646.0,58642.0,0.42941]
[1617689811264,1.00202189,58647.0,58642.0,0.42941]
[1617689811465,0.10725655,58643.0,58642.0,0.42941]
[1617689813366,0.10725655,58643.0,58642.0,0.53666655]
[1617689813567,0.10725655,58643.0,58642.0,0.37725655]
[1617689813766,3.64645655,58643.0,58642.0,0.37725655]
[1617689814267,2.64645655,58643.0,58642.0,0.37725655]
[1617689814468,3.64645655,58643.0,58642.0,0.37725655]
[1617689814774,2.64645655,58643.0,58642.0,0.37725655]
[1617689815271,0.10725655,58643.0,58642.0,0.37725655]
[1617689818673,0.10725655,58643.0,58642.0,0.53354655]
[1617689821278,0.00202821,58650.0,58642.0,0.53354655]
[1617689821481,0.00203444,58651.0,58650.0,0.10725655]
[1617689821777,0.00203509,58652.0,58650.0,0.10725655]
[1617689821978,0.00203509,58652.0,58650.0,0.37725655]
[1617689822480,0.00203462,58651.0,58650.0,0.37725655]
[1617689822881,0.00494122,58652.0,58650.0,0.37725655]
[1617689822883,0.00203642,58652.0,58650.0,0.37725655]
[1617689823183,0.00203642,58652.0,58650.0,0.27]
[1617689823482,0.10725655,58651.0,58650.0,0.27]
[1617689823680,0.10725655,58651.0,58643.0,0.27]
[1617689823881,0.10725655,58651.0,58642.0,0.26354655]
[1617689824080,0.10725655,58651.0,58644.0,0.27]
[1617689824402,0.10725655,58651.0,58643.0,0.27]
[1617689824403,0.00203654,58650.0,58643.0,0.27]
[1617689824802,0.00203654,58650.0,58645.0,0.27]
[1617689824803,0.00203542,58647.0,58645.0,0.27]
[1617689825084,0.00203542,58647.0,58643.0,0.27]
[1617689825483,0.00203542,58647.0,58646.0,0.27]
[1617689825684,0.00203542,58647.0,58643.0,0.27]
[1617689826085,0.00203445,58646.0,58641.0,0.4743]
[1617689826404,0.00203445,58646.0,58644.0,0.27]
[1617689826635,0.00493862,58645.0,58641.0,0.4743]
[1617689826884,0.00203411,58645.0,58643.0,0.27]
[1617689827300,0.00203411,58645.0,58642.0,0.27]
[1617689827487,0.10725655,58643.0,58641.0,0.4743]
[1617689827797,0.10725655,58643.0,58642.0,0.27]
[1617689828286,0.10929148,58643.0,58642.0,0.27]
[1617689829287,0.10725655,58643.0,58642.0,0.27]
[1617689836099,1.18739178,58643.0,58642.0,0.27]
[1617689836999,1.4291386,58643.0,58642.0,0.27]
[1617689837501,1.18739178,58643.0,58642.0,0.27]
[1617689837799,1.42914453,58643.0,58642.0,0.27]
[1617689841504,1.42914453,58643.0,58642.0,0.37725655]
[1617689845707,1.42914453,58643.0,58642.0,0.47966655]
[1617689848509,1.42914453,58643.0,58642.0,0.37725655]
[1617689849315,1.42914453,58643.0,58642.0,0.52144655]
[1617689850715,1.42914453,58643.0,58642.0,0.37725655]
[1617689851818,1.42914453,58643.0,58642.0,0.49520655]
[1617689853171,1.42914453,58643.0,58642.0,0.85715614]
[1617689854623,1.32188798,58643.0,58642.0,0.85715614]
[1617689855324,0.64810077,58643.0,58642.0,0.85715614]
[1617689855524,0.64810077,58643.0,58642.0,1.85715614]
[1617689855831,0.64810077,58643.0,58642.0,2.29950896]
[1617689856326,0.64810077,58643.0,58642.0,2.39015511]
[1617689856724,0.29460018,58643.0,58642.0,2.39015511]
[1617689859325,0.29460018,58643.0,58642.0,2.44095511]
[1617689859535,0.29460018,58643.0,58642.0,2.35030896]
[1617689860159,0.29460018,58643.0,58642.0,2.39015029]
[1617689860559,0.29460018,58643.0,58642.0,2.80238155]
[1617689860825,0.29460018,58643.0,58642.0,2.8930221]
[1617689861356,0.00995484,58643.0,58642.0,2.8930221]
[1617689862029,0.00995484,58643.0,58642.0,1.8930221]
[1617689862227,0.29575396,58643.0,58642.0,1.8930221]
[1617689862629,0.29575396,58643.0,58642.0,1.39014951]
[1617689863027,0.65044227,58643.0,58642.0,1.29950896]
[1617689863428,0.00993859,58643.0,58642.0,1.39015099]
[1617689863664,0.00993859,58643.0,58642.0,2.39015099]
[1617689863958,0.00993859,58643.0,58642.0,2.35100896]
[1617689863959,0.00501935,58643.0,58642.0,2.35100896]
[1617689864162,0.00501935,58643.0,58642.0,2.29950896]
[1617689864428,0.00501935,58643.0,58642.0,2.39014986]
[1617689864429,0.00206717,58643.0,58642.0,2.39014986]
[1617689864849,0.00993794,58643.0,58642.0,2.29950896]
[1617689865328,0.00993794,58643.0,58642.0,1.39015161]
[1617689865731,0.00501821,58643.0,58642.0,1.29950896]
[1617689866231,0.00206706,58644.0,58642.0,1.80170518]
[1617689866831,0.00206706,58644.0,58642.0,1.29950896]
[1617689867031,0.00206706,58644.0,58643.0,0.86393785]
[1617689867432,0.00206706,58644.0,58643.0,1.13393785]
[1617689867630,0.00206706,58644.0,58643.0,2.13393785]
[1617689868343,0.00206706,58644.0,58643.0,2.18543785]
[1617689868634,6.706e-05,58644.0,58643.0,2.13393785]
[1617689869136,0.0050206,58646.0,58643.0,2.13393785]
[1617689869636,0.0050206,58646.0,58645.0,1.80351492]
[1617689869637,0.00994134,58646.0,58645.0,1.80351492]
[1617689869938,0.00994134,58646.0,58645.0,0.80351492]
[1617689870135,0.00994134,58646.0,58645.0,1.07351492]
[1617689870545,0.00994134,58646.0,58645.0,2.07351492]
[1617689870778,0.00994134,58646.0,58645.0,2.13394189]
[1617689870779,0.0050201,58646.0,58645.0,2.13394189]
[1617689871235,0.00994177,58648.0,58645.0,2.63612595]
[1617689871236,0.00502138,58648.0,58645.0,2.63612595]
[1617689871642,0.0050233,58650.0,58649.0,0.10725655]
[1617689871944,0.00502717,58655.0,58649.0,0.10725655]
[1617689872146,0.00302717,58655.0,58649.0,1.37725655]
[1617689872337,0.00302717,58655.0,58653.0,1.0]
[1617689872542,0.00302717,58655.0,58654.0,0.95099978]
[1617689872836,0.00302717,58655.0,58654.0,2.28141445]
[1617689873141,0.00302717,58655.0,58654.0,1.28141445]
[1617689873361,0.00995656,58657.0,58654.0,1.28141445]
[1617689873740,0.00995559,58656.0,58655.0,0.10725655]
[1617689874361,0.35495137,58660.0,58655.0,0.10725655]
[1617689874362,0.00993185,58660.0,58656.0,0.36072639]
[1617689874758,0.00993185,58660.0,58657.0,0.27]
[1617689875159,0.29510382,58661.0,58659.0,0.36072246]
[1617689875160,0.00993515,58661.0,58659.0,0.36072246]
[1617689875642,0.00993763,58662.0,58660.0,0.36072186]
[1617689875842,0.00993763,58662.0,58660.0,0.63072186]
[1617689876444,0.117194,58663.0,58661.0,0.42113156]
[1617689876843,0.117194,58663.0,58662.0,0.27]
[1617689877043,0.10725655,58663.0,58662.0,0.27]
[1617689877444,0.40257114,58663.0,58662.0,0.27]
[1617689877746,0.40257114,58663.0,58662.0,0.37725655]
[1617689877944,0.40257114,58663.0,58662.0,0.10725655]
[1617689878144,0.40257114,58663.0,58662.0,0.37725655]
[1617689878345,0.11721673,58663.0,58662.0,0.37725655]
[1617689878845,0.10725655,58663.0,58662.0,0.73797309]
[1617689880847,0.00996296,58665.0,58662.0,0.73797309]
[1617689881048,0.00996296,58665.0,58662.0,1.73797309]
[1617689881247,0.00996296,58665.0,58664.0,1.0]
[1617689881448,0.00995745,58666.0,58664.0,1.0]
[1617689881676,0.00995745,58666.0,58664.0,1.27]
[1617689881872,0.00995745,58666.0,58664.0,0.27]
[1617689882271,0.00995505,58665.0,58664.0,0.27]
[1617689882647,0.00995505,58665.0,58663.0,0.27]
[1617689882950,0.00995505,58665.0,58664.0,0.27]
[1617689883170,0.35479484,58667.0,58664.0,0.27]
[1617689883354,0.35479484,58667.0,58663.0,0.27]
[1617689883647,0.35479484,58667.0,58664.0,0.27]
[1617689883848,0.35479484,58667.0,58662.0,0.10725655]
[1617689883849,0.29572086,58665.0,58663.0,0.27]
[1617689884149,0.29573361,58666.0,58665.0,0.27]
[1617689884647,0.29573361,58666.0,58663.0,0.27]
[1617689884847,0.29573361,58666.0,58665.0,0.27]
[1617689885048,0.46208819,58668.0,58662.0,0.10725655]
[1617689885254,0.46208819,58668.0,58663.0,0.27]
[1617689885550,0.29564611,58666.0,58663.0,0.27]
[1617689886351,0.00995225,58665.0,58663.0,0.27]
[1617689887453,0.00995592,58666.0,58663.0,0.63058891]
[1617689887651,2.44748868,58664.0,58663.0,0.63058891]
[1617689887852,2.44748868,58664.0,58663.0,0.27]
[1617689889354,2.74265686,58664.0,58663.0,0.27]
[1617689889755,0.29516818,58664.0,58663.0,0.27]
[1617689890657,0.40270818,58664.0,58663.0,0.27]
[1617689891455,0.75702637,58664.0,58663.0,0.27]
[1617689893057,0.64948637,58664.0,58663.0,0.27]
[1617689893659,0.64948637,58664.0,58663.0,0.42941]
[1617689893858,0.29516818,58664.0,58663.0,0.42941]
[1617689894158,0.2954128,58665.0,58663.0,0.42941]
[1617689894758,0.00994273,58664.0,58663.0,0.42941]
[1617689895557,0.00994332,58665.0,58663.0,0.42941]
[1617689897461,0.00994332,58665.0,58663.0,0.27]
[1617689897762,0.00994088,58664.0,58663.0,0.27]
[1617689897962,0.29529046,58664.0,58663.0,0.27]
[1617689898261,0.35432887,58666.0,58663.0,0.27]
[1617689898861,0.35456653,58665.0,58663.0,0.27]
[1617689900461,0.10725655,58668.0,58663.0,0.27]
[1617689900462,0.35477039,58666.0,58663.0,0.27]
[1617689900863,0.35477039,58666.0,58663.0,0.41868]
[1617689901863,0.35495522,58667.0,58663.0,1.41868]
[1617689902163,0.29583274,58665.0,58663.0,1.41868]
[1617689902563,0.24668713,58665.0,58663.0,1.41868]
[1617689903164,0.46223612,58668.0,58663.0,0.41868]
[1617689903404,2.5568,58664.0,58663.0,0.27]
[1617689903867,3.91131586,58664.0,58662.0,0.27]
[1617689904067,3.91131586,58664.0,58660.0,0.27]
[1617689904268,4.94825264,58664.0,58660.0,0.27]
[1617689904467,1.15516,58661.0,58654.0,0.27]
[1617689904769,0.2,58660.0,58642.0,0.36047608]
[1617689905077,1.94159036,58661.0,58654.0,0.27]
[1617689905268,0.35394688,58655.0,58654.0,0.27]
[1617689905968,0.46120343,58655.0,58654.0,0.27]
[1617689906567,1.13550336,58655.0,58654.0,0.27]
[1617689911471,2.13550336,58655.0,58654.0,0.27]
[1617689911876,5.22770336,58655.0,58654.0,0.27]
[1617689912073,5.42770336,58655.0,58654.0,0.27]
[1617689912473,5.91921789,58655.0,58654.0,0.27]
[1617689912874,6.28183689,58655.0,58654.0,0.27]
[1617689913276,6.8459044,58655.0,58654.0,0.27]
[1617689913476,3.7537044,58655.0,58654.0,0.27]
[1617689913677,3.5537044,58655.0,58654.0,0.27]
[1617689913881,3.5537044,58655.0,58654.0,0.2698]
[1617689914378,2.62701789,58655.0,58654.0,0.2698]
[1617689914780,2.98961336,58655.0,58654.0,0.2698]
[1617689915182,2.62701789,58655.0,58654.0,0.2698]
[1617689915980,5.58741789,58655.0,58654.0,0.2698]
[1617689916782,6.51408677,58655.0,58654.0,0.2698]
[1617689917082,5.95002745,58655.0,58654.0,0.2698]
[1617689917582,6.5140721,58655.0,58654.0,0.2698]
[1617689918587,5.95002745,58655.0,58654.0,0.2698]
[1617689919589,4.95002745,58655.0,58654.0,0.2698]
[1617689920050,1.98962745,58655.0,58654.0,0.51465655]
[1617689920488,1.49811292,58655.0,58654.0,0.51465655]
[1617689920788,1.13550336,58655.0,58654.0,0.51465655]
[1617689921586,0.10725655,58655.0,58654.0,0.51465655]
[1617689922089,0.46167961,58655.0,58654.0,0.51465655]
[1617689922990,0.70336788,58655.0,58654.0,0.51465655]
[1617689923390,0.46167961,58655.0,58654.0,0.51465655]
[1617689923890,0.70337045,58655.0,58654.0,0.51465655]
[1617689924090,0.70337045,58655.0,58654.0,0.37705655]
[1617689924692,1.13647704,58655.0,58654.0,0.37705655]
[1617689928500,0.70337045,58655.0,58654.0,0.37705655]
[1617689929899,1.13642462,58655.0,58654.0,0.37705655]
[1617689932901,1.43175015,58655.0,58654.0,0.37705655]
[1617689933202,1.19005931,58655.0,58654.0,0.37705655]
[1617689933703,1.43176115,58655.0,58654.0,0.37705655]
[1617689934104,1.19005931,58655.0,58654.0,0.37705655]
[1617689934706,1.43176171,58655.0,58654.0,0.37705655]
[1617689935019,1.19005931,58655.0,58654.0,0.37705655]
[1617689935412,4.66745931,58655.0,58654.0,0.37705655]
[1617689935705,4.90916809,58655.0,58654.0,0.37705655]
[1617689936306,5.27173531,58655.0,58654.0,0.2698]
[1617689936612,5.38883531,58655.0,58654.0,0.2698]
[1617689936805,6.38883531,58655.0,58654.0,0.2698]
[1617689937009,6.88023829,58655.0,58654.0,0.2698]
[1617689937707,5.88023829,58655.0,58654.0,0.2698]
[1617689937908,6.88023829,58655.0,58654.0,0.2698]
[1617689939811,5.88023829,58655.0,58654.0,0.2698]
[1617689941111,6.88023829,58655.0,58654.0,0.2698]
[1617689942013,5.88023829,58655.0,58654.0,0.2698]
[1617689944241,5.76313829,58655.0,58654.0,0.2698]
[1617689944621,5.27173531,58655.0,58654.0,0.2698]
[1617689947420,4.90916809,58655.0,58654.0,0.2698]
[1617689950424,3.58465655,58655.0,58654.0,0.2698]
[1617689951025,4.66885059,58655.0,58654.0,0.2698]
[1617689952734,5.16159201,58655.0,58654.0,0.2698]
[1617689953027,5.30810201,58655.0,58654.0,0.2698]
[1617689954028,5.16159201,58655.0,58654.0,0.2698]
[1617689954632,4.66885059,58655.0,58654.0,0.2698]
[1617689957836,4.77471059,58655.0,58654.0,0.2698]
[1617689958037,6.26747904,58655.0,58654.0,0.2698]
[1617689958336,5.26747904,58655.0,58654.0,0.2698]
[1617689963242,6.26747904,58655.0,58654.0,0.2698]
[1617689963548,6.81955047,58655.0,58654.0,0.2698]
[1617689963747,7.01955047,58655.0,58654.0,0.2698]
[1617689964343,7.38359998,58655.0,58654.0,0.26879277]
[1617689964843,7.58359998,58655.0,58654.0,0.26879277]
[1617689970546,7.38359998,58655.0,58654.0,0.26879277]
[1617689970947,6.38359998,58655.0,58654.0,0.26879277]
[1617689971147,7.38359998,58655.0,58654.0,0.26879277]
[1617689971349,6.38359998,58655.0,58654.0,0.26879277]
[1617689971751,5.16161904,58655.0,58654.0,0.26879277]
[1617689974952,1.68421904,58655.0,58654.0,0.32019277]
[1617689975152,1.68421904,58655.0,58654.0,0.43422277]
[1617689975354,1.68421904,58655.0,58654.0,0.38282277]
[1617689975752,1.19145059,58655.0,58654.0,0.38282277]
[1617689976195,1.43313576,58655.0,58654.0,0.38282277]
[1617689976354,1.43313576,58655.0,58654.0,0.49007932]
[1617689976555,1.43313576,58655.0,58654.0,0.85179881]
[1617689977354,0.99947785,58655.0,58654.0,0.85179881]
[1617689979657,0.99947785,58655.0,58654.0,1.29387593]
[1617689980157,0.99947785,58655.0,58654.0,0.85179881]
[1617689983063,0.99947785,58655.0,58654.0,1.29401598]
[1617689983462,0.99947785,58655.0,58654.0,0.85179881]
[1617689987070,0.8922213,58655.0,58654.0,0.85179881]
[1617689987769,0.65053613,58655.0,58654.0,0.85179881]
[1617689990570,0.2957072,58655.0,58654.0,1.29366866]
[1617689993374,0.35608657,58658.0,58654.0,2.29366866]
[1617689993375,0.296778,58658.0,58654.0,2.29366866]
[1617689993572,0.2,58694.0,58654.0,1.49007932]
[1617689993772,1.0,58687.0,58658.0,1.0]
[1617689994073,0.29692024,58661.0,58658.0,1.0]
[1617689994273,0.29692024,58661.0,58659.0,0.27]
[1617689994475,0.3562845,58664.0,58660.0,0.46809163]
[1617689994476,0.29652007,58664.0,58660.0,0.46809163]
[1617689994977,0.29652007,58664.0,58662.0,0.36083426]
[1617689995276,0.29652848,58663.0,58662.0,0.36083426]
[1617689995676,0.29652848,58663.0,58662.0,0.63083426]
[1617689995879,0.29652848,58663.0,58662.0,0.69124448]
[1617689996177,0.29652848,58663.0,58662.0,0.33041022]
[1617689996877,0.29652848,58663.0,58662.0,0.69124385]
[1617689997281,0.29656897,58664.0,58662.0,0.69124385]
[1617689997979,0.29656897,58664.0,58663.0,0.06040912]
[1617689998278,0.29656897,58664.0,58663.0,0.33040912]
[1617689998879,0.29656897,58664.0,58663.0,0.6912378]
[1617689999278,0.29656897,58664.0,58663.0,1.6912378]
[1617689999979,0.29683573,58666.0,58664.0,1.0]
[1617690000379,0.29683573,58666.0,58665.0,0.27]
[1617690000681,0.29683573,58666.0,58665.0,0.69121907]
[1617690003987,0.29689396,58667.0,58665.0,0.69121907]
[1617690004586,0.29689396,58667.0,58666.0,0.28520364]
[1617690004987,0.29689396,58667.0,58666.0,0.55520364]
[1617690005290,0.54261741,58674.0,58666.0,0.49479655]
[1617690005291,0.2966204,58668.0,58666.0,0.49479655]
[1617690009192,0.29635988,58669.0,58666.0,0.49479655]
[1617690010494,0.29623752,58670.0,58666.0,0.49479655]
[1617690011298,0.29623752,58670.0,58667.0,0.0512]
[1617690011497,0.29626988,58669.0,58666.0,0.49479655]
[1617690011696,0.29626988,58669.0,58668.0,0.27]
[1617690011996,0.29626988,58669.0,58667.0,0.27]
[1617690012397,0.10725655,58674.0,58668.0,0.27]
[1617690012398,0.29631277,58670.0,58668.0,0.27]
[1617690012597,0.29631277,58670.0,58667.0,0.3214]
[1617690012897,0.29634311,58671.0,58669.0,0.27]
[1617690013197,0.29634311,58671.0,58668.0,0.27]
[1617690013398,0.29634311,58671.0,58668.0,1.27]
[1617690013597,0.29634311,58671.0,58670.0,0.27]
[1617690013799,0.29634311,58671.0,58668.0,1.0]
[1617690014000,0.29634311,58671.0,58669.0,0.27]
[1617690014400,0.29646999,58672.0,58669.0,0.27]
[1617690015203,0.29646999,58672.0,58670.0,1.0]
[1617690015402,0.29646999,58672.0,58671.0,1.0]
[1617690016137,0.35586363,58677.0,58671.0,1.27]
[1617690016405,0.35586363,58677.0,58674.0,1.0]
[1617690016604,0.35602879,58681.0,58676.0,0.10725655]
[1617690016822,0.35602879,58681.0,58676.0,1.10725655]
[1617690017045,0.10725655,58703.0,58676.0,1.10725655]
[1617690017046,0.35613124,58683.0,58676.0,0.10725655]
[1617690017235,0.35613124,58683.0,58680.0,1.15512]
[1617690017446,0.35613124,58683.0,58680.0,0.15512]
[1617690017705,0.79550106,58702.0,58680.0,0.15512]
[1617690017706,0.35619867,58684.0,58681.0,0.27]
[1617690017903,0.35619867,58684.0,58681.0,0.7545]
[1617690018204,0.35567029,58687.0,58681.0,0.8061]
[1617690018704,0.35567029,58687.0,58686.0,0.10725655]
[1617690019206,0.35567029,58687.0,58686.0,0.37725655]
[1617690020109,0.35581631,58689.0,58686.0,0.37725655]
[1617690020609,0.35580453,58688.0,58686.0,0.37725655]
[1617690021612,0.43486465,58693.0,58686.0,0.37725655]
[1617690021613,0.35581601,58689.0,58686.0,0.37725655]
[1617690023512,0.35581601,58689.0,58688.0,1.0]
[1617690023713,0.34881045,58693.0,58686.0,0.37725655]
[1617690023714,0.35593998,58690.0,58686.0,0.37725655]
[1617690023918,0.35593998,58690.0,58688.0,1.27]
[1617690024213,0.35595579,58691.0,58688.0,1.0]
[1617690024513,0.35595579,58691.0,58689.0,0.27]
[1617690026015,0.35598222,58690.0,58689.0,0.27]
[1617690026818,0.3559975,58691.0,58689.0,0.27]
[1617690028319,0.59757411,58692.0,58689.0,0.27]
[1617690029122,0.46300021,58693.0,58689.0,0.27]
[1617690029521,0.00997912,58690.0,58689.0,0.27]
[1617690031727,0.10725655,58693.0,58689.0,0.27]
[1617690031728,3.2575,58691.0,58689.0,0.27]